bitfinex-derivatives/quotes_ETHF0:USTF0_20250727
["timestamp","ask_amount","ask_price","bid_price","bid_amount"]
[1753641592843,0.70929036,3855.3,3855.2,6.65842]
[1753641593135,2.8249,3855.7,3855.6,6.1398]
[1753641593340,3.53456137,3855.7,3855.6,6.1398]
[1753641593538,4.05311137,3855.7,3855.6,6.65837]
[1753641593940,4.05311137,3855.7,3855.6,6.1398]
[1753641594337,4.05501137,3855.7,3855.6,6.1398]
[1753641594645,4.91241137,3855.7,3855.6,3.9119]
[1753641596743,4.05501137,3855.7,3855.6,6.65837]
[1753641596932,4.05501137,3855.7,3855.6,6.1398]
[1753641597137,4.05501137,3855.7,3855.6,6.65837]
[1753641597534,4.05501137,3855.7,3855.6,6.1398]
[1753641598747,4.05501137,3855.7,3855.6,4.8044]
[1753641598946,4.92201137,3855.7,3855.6,4.8044]
[1753641601243,4.05311137,3855.7,3855.6,6.0929]
[1753641601441,3.53456137,3855.7,3855.6,6.61147]
[1753641601640,3.98761137,3855.7,3855.6,6.0929]
[1753641602041,4.85461137,3855.7,3855.6,4.8044]
[1753641602638,3.98761137,3855.7,3855.6,6.61147]
[1753641602841,3.46906137,3855.7,3855.6,6.61147]
[1753641603240,3.98761137,3855.7,3855.6,6.0929]
[1753641603447,0.70966137,3855.7,3855.6,6.61147]
[1753641604147,1.61266137,3855.7,3855.6,6.61147]
[1753641604650,0.70966137,3855.7,3855.6,6.61147]
[1753641605039,2.13121137,3855.7,3855.6,6.61147]
[1753641605242,3.43881137,3855.7,3855.6,6.61147]
[1753641605544,2.92026137,3855.7,3855.6,6.61147]
[1753641605948,0.70966137,3855.7,3855.6,9.81927]
[1753641606149,0.70966137,3855.7,3855.6,6.61147]
[1753641609745,0.5185,3856.2,3856.0,2.4486]
[1753641610048,0.51849,3856.3,3856.2,6.66647]
[1753641610251,1.22864881,3856.3,3856.2,6.66647]
[1753641610953,0.71015881,3856.3,3856.2,6.66647]
[1753641611649,1.42145,3856.5,3856.4,2.96706]
[1753641611850,1.61272411,3856.5,3856.4,6.66646]
[1753641612148,0.867,3856.0,3855.8,0.9103]
[1753641612343,2.00999,3855.4,3855.3,1.5006]
[1753641612541,4.91494809,3855.4,3855.3,1.5006]
[1753641613146,4.91494809,3855.4,3855.3,4.0047]
[1753641614043,4.18464,3855.1,3855.0,1.5938]
[1753641614353,4.18466,3854.9,3854.8,1.5938]
[1753641614753,4.18466,3854.9,3854.8,4.0047]
[1753641614954,4.18466,3854.9,3854.8,4.52338]
[1753641616750,3.31766,3854.9,3854.8,4.52338]
[1753641618057,2.3584,3854.5,3854.4,1.50991]
[1753641618245,2.87712,3854.5,3854.4,2.11253]
[1753641618447,2.01012,3854.5,3854.4,4.25583]
[1753641618659,3.31772,3854.5,3854.4,6.66673]
[1753641619160,1.42172,3854.5,3854.4,6.66673]
[1753641619348,5.1038,3854.9,3854.8,1.97608]
[1753641619552,1.22814535,3854.9,3854.8,6.28118]
[1753641619751,8.17994535,3854.9,3854.8,2.4109]
[1753641619956,3.39572,3854.5,3854.4,4.52343]
[1753641620354,3.39572,3854.5,3854.4,6.28123]
[1753641623657,2.799,3854.5,3854.4,6.28123]
[1753641623853,5.4184,3854.8,3854.7,2.96729]
[1753641624160,4.1108,3854.8,3854.7,6.28119]
[1753641624357,5.4184,3854.8,3854.7,6.28119]
[1753641624753,3.2078,3854.8,3854.7,6.28119]
[1753641624951,1.3376,3855.2,3854.9,2.96725]
[1753641624952,2.01006,3855.0,3854.9,2.96725]
[1753641625157,4.02686641,3855.0,3854.9,6.28115]
[1753641625557,4.07486641,3855.0,3854.9,6.35257273]
[1753641626564,3.36566,3855.0,3854.9,6.35257273]
[1753641627458,4.26266,3855.0,3854.9,2.48232273]
[1753641627668,4.26266,3855.0,3854.9,4.07612273]
[1753641627961,3.36566,3855.0,3854.9,6.39938273]
[1753641628166,3.31766,3855.0,3854.9,6.39938273]
[1753641628561,3.37436,3855.0,3854.9,6.39938273]
[1753641629565,2.72926,3855.0,3854.9,6.39938273]
[1753641629862,3.36786,3855.0,3854.9,6.39938273]
[1753641630062,3.40336,3855.0,3854.9,6.39938273]
[1753641632361,2.7925,3855.0,3854.9,6.39938273]
[1753641632563,2.2106,3855.0,3854.9,6.39938273]
[1753641632763,1.99042,3855.3,3855.2,6.29341]
[1753641632961,1.99042,3855.3,3854.9,0.07142273]
[1753641632962,2.04715,3855.0,3854.9,0.07142273]
[1753641633162,4.35195,3855.0,3854.9,4.04162273]
[1753641636065,3.45825,3855.0,3854.9,6.36488273]
[1753641636371,3.42275,3855.0,3854.9,5.84622273]
[1753641636576,3.2078,3855.3,3854.9,5.84622273]
[1753641636874,5.99191,3855.3,3855.2,2.4579]
[1753641637074,7.28278567,3855.3,3855.2,5.7748]
[1753641637675,7.28278567,3855.3,3855.2,5.84622273]
[1753641639186,7.28278567,3855.3,3855.2,6.36484273]
[1753641639484,6.18227567,3855.3,3855.2,6.36484273]
[1753641639789,5.99191,3855.3,3855.2,5.84622273]
[1753641640478,6.57381,3855.3,3855.2,5.84622273]
[1753641640783,6.57381,3855.3,3855.2,6.36484273]
[1753641640986,6.57381,3855.3,3855.2,5.84622273]
[1753641641186,3.36601,3855.3,3855.2,5.84622273]
[1753641641585,3.36601,3855.3,3855.2,6.36484273]
[1753641642085,2.78411,3855.3,3855.2,6.36484273]
[1753641642674,2.2655,3855.3,3855.2,6.36484273]
[1753641642881,0.8899,3855.3,3855.2,6.36484273]
[1753641643082,1.40851,3855.3,3855.2,6.36484273]
[1753641646285,0.8899,3855.3,3855.2,6.36484273]
[1753641647087,1.3756,3855.6,3855.4,6.2886]
[1753641647088,1.40848,3855.5,3855.4,6.2886]
[1753641647387,2.11330656,3855.5,3855.4,6.2886]
[1753641647590,0.70482656,3855.5,3855.4,6.36002273]
[1753641647785,0.51858,3855.6,3855.5,6.28858]
[1753641647990,1.40846,3855.7,3855.6,2.02665]
[1753641648192,2.11327141,3855.7,3855.6,6.28855]
[1753641648590,2.11327141,3855.7,3855.6,6.35997273]
[1753641649290,3.48887141,3855.7,3855.6,6.35997273]
[1753641649586,4.07077141,3855.7,3855.6,6.35997273]
[1753641650183,3.36596,3855.7,3855.6,6.35997273]
[1753641650788,0.8899,3855.7,3855.6,6.35997273]
[1753641651492,2.2655,3855.7,3855.6,6.35997273]
[1753641651794,0.8899,3855.7,3855.6,6.35997273]
[1753641653590,2.8474,3856.0,3855.9,2.97643]
[1753641653792,3.36591,3856.0,3855.9,6.28853]
[1753641653996,2.8956,3856.0,3855.9,6.28853]
[1753641654184,3.41411,3856.0,3855.9,6.28853]
[1753641654389,2.8956,3856.0,3855.9,6.28853]
[1753641654590,2.9257,3856.0,3855.9,6.35995273]
[1753641655391,3.44421,3856.0,3855.9,6.35995273]
[1753641656596,4.14816407,3856.0,3855.9,6.35995273]
[1753641657292,5.04186407,3856.0,3855.9,6.35995273]
[1753641657994,5.04186407,3856.0,3855.9,6.39556784]
[1753641660801,4.06986407,3856.0,3855.9,6.39556784]
[1753641660991,4.06986407,3856.0,3855.9,5.87703784]
[1753641661196,4.15646407,3856.0,3855.9,5.87703784]
[1753641662197,5.07756407,3856.0,3855.9,5.87703784]
[1753641664703,5.07756407,3856.0,3855.9,6.39556784]
[1753641665601,4.15646407,3856.0,3855.9,6.39556784]
[1753641665805,4.15646407,3856.0,3855.9,5.87703784]
[1753641666500,4.15646407,3856.0,3855.9,6.39556784]
[1753641668598,4.15646407,3856.0,3855.9,5.87703784]
[1753641668997,4.15646407,3856.0,3855.9,6.39556784]
[1753641674202,25.45946407,3856.0,3855.9,6.39556784]
[1753641675008,25.42616407,3856.0,3855.9,6.39556784]
[1753641675308,25.37086407,3856.0,3855.9,6.39556784]
[1753641676612,24.85235407,3856.0,3855.9,6.39556784]
[1753641676909,25.37086407,3856.0,3855.9,6.39556784]
[1753641677503,24.84935407,3856.0,3855.9,6.39556784]
[1753641677702,3.55135407,3856.0,3855.9,6.39556784]
[1753641678108,4.06986407,3856.0,3855.9,6.39556784]
[1753641679310,4.06986407,3856.0,3855.9,5.87703784]
[1753641679709,4.10316407,3856.0,3855.9,6.39556784]
[1753641681308,3.55135407,3856.0,3855.9,6.39556784]
[1753641681614,0.70395407,3856.0,3855.9,6.39556784]
[1753641681806,3.2078,3856.2,3856.1,1.9383]
[1753641682014,3.90919103,3856.2,3856.1,6.30583784]
[1753641683304,3.2078,3856.2,3856.1,6.30583784]
[1753641683712,5.5055,3856.2,3856.1,6.30583784]
[1753641686917,0.9078,3856.2,3856.1,6.30583784]
[1753641687115,1.90833,3856.7,3856.6,0.51843]
[1753641687312,2.09038505,3856.7,3856.6,6.19873]
[1753641687511,2.99818505,3856.7,3856.6,6.19873]
[1753641688110,2.99818505,3856.7,3856.6,6.30576784]
[1753641688518,2.2977,3856.7,3856.6,6.30576784]
[1753641688813,3.2078,3856.8,3856.7,0.51842]
[1753641689018,3.2078,3856.8,3856.7,3.11695784]
[1753641689219,3.2078,3856.8,3856.7,6.41885784]
[1753641689518,5.4607,3856.8,3856.7,6.41885784]
[1753641689908,2.8408,3856.8,3856.7,6.41885784]
[1753641690109,1.3265,3857.5,3857.2,0.9252]
[1753641690312,5.4607,3857.6,3857.5,5.38651]
[1753641690517,6.16034201,3857.6,3857.5,6.31171]
[1753641690717,6.74824201,3857.6,3857.5,6.31171]
[1753641690918,6.80054201,3857.6,3857.5,6.31171]
[1753641691216,6.83324201,3857.6,3857.5,6.41874784]
[1753641691920,6.1009,3857.6,3857.5,6.41874784]
[1753641692120,6.1336,3857.6,3857.5,6.41874784]
[1753641693419,7.75857704,3857.6,3857.5,3.46603784]
[1753641693723,1.5666,3856.7,3856.6,4.65143]
[1753641693914,4.55077704,3856.7,3856.6,4.65143]
[1753641694116,4.55077704,3856.7,3856.6,7.70243]
[1753641694422,2.8735,3857.0,3856.9,6.31179]
[1753641694618,2.9258,3857.0,3856.9,6.31179]
[1753641694818,2.8408,3857.0,3856.9,6.31179]
[1753641695421,2.9258,3857.0,3856.9,6.31179]
[1753641695724,0.9264,3857.3,3857.2,6.31175]
[1753641697419,6.1009,3857.6,3857.5,6.31171]
[1753641697618,6.1336,3857.6,3857.5,6.31171]
[1753641697819,2.9258,3857.6,3857.5,6.31171]
[1753641698021,2.8408,3857.6,3857.5,6.31171]
[1753641699923,1.1264,3857.9,3857.8,0.51827]
[1753641700121,2.4529,3857.9,3857.8,6.31167]
[1753641700327,2.4529,3857.9,3857.8,9.51947]
[1753641700723,2.4529,3857.9,3857.8,6.31167]
[1753641701427,3.0408,3857.9,3857.8,6.31167]
[1753641702922,1.1264,3857.9,3857.8,6.31167]
[1753641703130,0.2,3857.9,3857.8,6.31167]
[1753641703330,3.0408,3857.9,3857.8,6.31167]
[1753641704528,0.2,3857.9,3857.8,6.31167]
[1753641708242,1.3265,3858.2,3857.8,6.31167]
[1753641708243,0.018,3858.3,3858.2,6.31162]
[1753641708428,1.3265,3858.6,3858.2,6.31162]
[1753641708429,2.2529,3858.6,3858.5,3.00968]
[1753641708729,2.2529,3858.6,3858.5,6.31158]
[1753641709236,2.8408,3858.6,3858.5,6.31158]
[1753641710433,6.2813,3859.0,3858.9,6.31152]
[1753641711327,6.0486,3859.0,3858.9,6.31152]
[1753641712930,5.4607,3859.0,3858.9,7.04229704]
[1753641713325,2.2529,3859.0,3858.9,7.04229704]
[1753641714229,4.1342,3859.6,3859.5,1.8743]
[1753641714430,0.9264,3859.6,3859.5,10.24911704]
[1753641714737,2.2529,3859.8,3859.7,6.31052]
[1753641715238,2.8408,3859.8,3859.7,6.31052]
[1753641715632,2.2529,3859.8,3859.7,6.31052]
[1753641716233,3.4432,3859.8,3859.7,5.39882]
[1753641716430,4.3374,3859.4,3859.3,0.51807]
[1753641716631,4.3374,3859.3,3859.2,0.51807]
[1753641717232,4.3374,3859.1,3858.7,2.3964]
[1753641717431,1.2971,3858.6,3858.5,0.51818]
[1753641717632,2.7196,3858.6,3858.5,0.51818]
[1753641717835,2.7196,3858.6,3858.5,2.92028]
[1753641718137,3.24,3858.6,3858.5,6.25328]
[1753641718438,2.8693,3858.6,3858.5,6.25328]
[1753641718627,4.3103,3858.6,3858.5,4.47808]
[1753641718833,4.3103,3858.6,3858.5,0.51818]
[1753641719435,4.2391,3858.0,3857.9,0.51826]
[1753641720539,4.2391,3858.0,3857.9,2.92036]
[1753641720739,4.2391,3858.0,3857.8,3.2078]
[1753641720934,2.33456,3858.0,3857.9,0.51826]
[1753641721139,1.8163,3858.0,3857.9,0.51826]
[1753641721534,4.2391,3858.0,3857.9,4.47816]
[1753641721737,0.8548,3858.0,3857.9,6.25336]
[1753641721931,3.4045,3858.0,3857.9,6.25336]
[1753641722136,4.2391,3858.0,3857.9,4.47816]
[1753641722940,3.4045,3858.0,3857.9,5.38416]
[1753641723136,4.2391,3858.0,3857.9,4.47816]
[1753641723942,4.2391,3858.0,3857.9,6.25336]
[1753641724144,2.7981,3858.0,3857.9,6.25336]
[1753641724346,0.8548,3858.0,3857.9,6.25336]
[1753641724847,2.2098,3858.0,3857.9,6.25336]
[1753641725042,2.7981,3858.0,3857.9,6.25336]
[1753641725647,2.7981,3858.4,3858.3,2.427]
[1753641725844,2.7981,3858.4,3858.3,6.25331]
[1753641726944,0.8548,3858.4,3858.3,6.25331]
[1753641727745,2.2098,3858.4,3858.3,6.25331]
[1753641729658,2.7981,3858.4,3858.3,6.25331]
[1753641730051,3.4045,3858.4,3858.3,6.25331]
[1753641730753,4.2391,3858.4,3858.3,4.47811]
[1753641731149,4.75729,3858.4,3858.3,0.51821]
[1753641733552,4.2391,3858.4,3858.3,0.51821]
[1753641733956,4.2391,3858.4,3858.3,1.44381]
[1753641734153,4.75729,3858.4,3858.3,1.44381]
[1753641734460,3.4045,3858.4,3858.3,5.38411]
[1753641734648,3.4045,3858.4,3858.3,6.25331]
[1753641735359,4.75729,3858.4,3858.3,6.25331]
[1753641736054,4.75729,3858.4,3858.3,5.34731]
[1753641736256,4.75729,3858.4,3858.3,4.47811]
[1753641737961,4.75729,3858.4,3858.3,5.38411]
[1753641738864,4.2391,3858.4,3858.3,5.38411]
[1753641739760,4.75729,3858.4,3858.3,5.38411]
[1753641741462,4.75729,3858.4,3858.3,4.47811]
[1753641741663,4.75729,3858.4,3858.3,3.91571]
[1753641741856,4.75729,3858.4,3858.3,2.92031]
[1753641742462,4.75729,3858.4,3858.3,4.47811]
[1753641742661,4.2391,3857.6,3857.5,1.5578]
[1753641743163,4.7574,3857.6,3857.5,4.47821]
[1753641743663,2.7981,3857.6,3857.5,6.25341]
[1753641744163,3.31631,3858.3,3858.2,2.94522]
[1753641744352,2.7981,3858.3,3858.2,2.94522]
[1753641744758,2.7981,3858.3,3858.2,6.25332]
[1753641745153,2.6509,3857.9,3857.8,1.5578]
[1753641745361,4.2391,3857.6,3857.5,0.51831]
[1753641746156,4.75744,3857.3,3857.2,2.9645]
[1753641746355,4.7575,3857.0,3856.9,3.9599]
[1753641746753,4.75751,3856.9,3856.8,0.9256]
[1753641747052,3.4045,3856.8,3856.7,4.45872]
[1753641747256,2.2098,3856.8,3856.7,5.32792]
[1753641747453,2.2098,3856.8,3856.7,6.25352]
[1753641750166,2.7981,3856.8,3856.7,6.25352]
[1753641752067,0.8548,3856.8,3856.7,6.25352]
[1753641752267,2.7703,3857.1,3857.0,6.28638]
[1753641753472,3.1431,3857.1,3857.0,6.28638]
[1753641753864,3.89447,3857.1,3857.0,6.28638]
[1753641754065,3.3761,3857.1,3857.0,6.28638]
[1753641755765,3.2078,3857.8,3857.7,0.51829]
[1753641756072,5.9781,3857.8,3857.7,6.28629]
[1753641756266,7.5055,3857.8,3857.7,2.95849]
[1753641756464,3.1431,3857.4,3857.3,0.51832]
[1753641756668,7.5055,3857.4,3857.3,0.51832]
[1753641756867,8.02384,3857.4,3857.3,0.51832]
[1753641757068,2.36675,3857.3,3857.2,0.51835]
[1753641757270,4.81605,3857.3,3857.2,1.44145]
[1753641757466,0.51835,3857.2,3857.1,0.51836]
[1753641757672,2.36675,3857.2,3857.1,0.51836]
[1753641757875,4.2977,3857.2,3857.1,0.51836]
[1753641758069,4.81605,3857.2,3857.1,3.55156]
[1753641758372,4.81605,3857.2,3857.1,4.49076]
[1753641758774,4.2977,3857.2,3857.1,4.49076]
[1753641759164,4.81605,3857.2,3857.1,4.49076]
[1753641761278,3.3761,3857.2,3857.1,4.49076]
[1753641761474,2.7703,3857.5,3857.4,2.95653]
[1753641761676,0.885,3857.7,3857.6,2.95649]
[1753641761975,2.1797,3857.7,3857.6,2.95649]
[1753641762367,2.1797,3857.7,3857.6,4.45749]
[1753641762573,2.69799,3857.7,3857.6,6.28629]
[1753641762978,3.28859,3857.7,3857.6,6.28629]
[1753641765478,2.7703,3857.7,3857.6,6.28629]
[1753641766175,2.7703,3857.7,3857.6,6.32189642]
[1753641766376,3.28859,3857.7,3857.6,6.32189642]
[1753641766776,2.7703,3857.7,3857.6,6.32189642]
[1753641768371,3.28859,3857.7,3857.6,6.32189642]
[1753641768576,2.7703,3857.7,3857.6,6.32189642]
[1753641768777,3.28859,3857.7,3857.6,6.32189642]
[1753641769683,2.7703,3857.7,3857.6,6.32189642]
[1753641770782,2.1797,3857.7,3857.6,6.32189642]
[1753641770985,2.1797,3857.9,3857.8,2.95647]
[1753641771185,2.1797,3857.9,3857.8,6.32187642]
[1753641771984,2.69796,3857.9,3857.8,6.32187642]
[1753641772184,2.1797,3857.9,3857.8,6.32187642]
[1753641772883,5.50767847,3857.9,3857.8,0.03560642]
[1753641773089,4.81604,3857.3,3857.2,1.501]
[1753641773288,1.29578,3857.6,3857.0,0.51837]
[1753641773289,2.36677,3857.1,3857.0,2.4714]
[1753641773489,4.81607,3857.1,3857.0,3.9724]
[1753641773890,4.81607,3857.1,3857.0,4.49078]
[1753641774283,4.81607,3857.1,3857.0,5.43208]
[1753641774990,3.89447,3857.1,3857.0,6.32198]
[1753641775190,3.66147,3857.1,3857.0,6.32198]
[1753641775485,2.1797,3857.1,3857.0,6.32198]
[1753641776189,2.7703,3857.1,3857.0,6.32198]
[1753641776583,3.66147,3857.1,3857.0,6.32198]
[1753641776787,3.89447,3857.1,3857.0,6.32198]
[1753641778281,4.77477,3857.1,3857.0,6.32198]
[1753641778687,4.77477,3857.1,3857.0,4.49078]
[1753641778987,4.77477,3857.1,3857.0,5.43228]
[1753641779187,3.89447,3857.1,3857.0,6.27608]
[1753641781294,4.77477,3857.1,3857.0,4.49078]
[1753641781783,4.77477,3857.1,3857.0,5.43228]
[1753641782592,3.89447,3857.1,3857.0,6.27608]
[1753641792490,1.81307,3857.1,3857.0,7.00553335]
[1753641792896,2.1624,3857.4,3857.3,5.35893]
[1753641793194,1.36552,3857.5,3857.4,5.7599]
[1753641793394,1.36552,3857.5,3857.4,6.27823]
[1753641793595,2.68072,3857.5,3857.4,6.27823]
[1753641794899,3.29102,3857.5,3857.4,6.27823]
[1753641796496,2.68072,3857.5,3857.4,6.27823]
[1753641797993,5.0383,3858.0,3857.9,2.92736]
[1753641798198,6.23886598,3858.0,3857.9,5.35886]
[1753641798393,4.055,3858.0,3857.9,6.27816]
[1753641798593,3.2078,3858.0,3857.9,6.27816]
[1753641798797,1.3152,3858.3,3858.2,6.27812]
[1753641799101,0.68227139,3858.3,3858.2,7.00757335]
[1753641799309,4.6653,3858.6,3858.5,2.92728]
[1753641799497,8.14907845,3858.6,3858.5,6.27808]
[1753641800006,7.4669,3858.6,3858.5,6.27808]
[1753641801095,5.3702,3858.6,3858.5,6.27808]
[1753641801299,3.2078,3858.6,3858.5,6.27808]
[1753641802297,5.9805,3858.6,3858.5,6.27808]
[1753641802494,5.3702,3858.6,3858.5,6.27808]
[1753641802698,0.8472,3858.6,3858.5,6.27808]
[1753641806298,2.1624,3858.6,3858.5,6.27808]
[1753641806502,2.7727,3858.6,3858.5,6.27808]
[1753641806703,3.3788,3858.6,3858.5,6.27808]
[1753641807901,4.2779,3858.6,3858.5,6.27808]
[1753641810705,4.79607,3858.6,3858.5,0.9193]
[1753641810898,2.37371,3858.4,3858.3,2.94551]
[1753641811098,2.37373,3858.2,3858.1,2.04552]
[1753641811308,4.82163,3858.2,3858.1,2.94552]
[1753641811508,4.82163,3858.2,3858.1,4.44642]
[1753641811710,4.3034,3858.2,3858.1,4.44642]
[1753641812007,4.82162,3858.2,3858.1,5.38372]
[1753641813404,4.82162,3858.2,3858.1,4.8655]
[1753641813704,4.82162,3858.2,3857.9,3.2078]
[1753641813705,2.37375,3858.0,3857.9,3.72605]
[1753641813901,4.82165,3858.0,3857.9,7.65425]
[1753641814311,4.82165,3858.0,3857.9,8.59155]
[1753641815314,4.3034,3858.0,3857.9,8.59155]
[1753641815615,3.4043,3858.0,3857.9,9.43255]
[1753641817217,3.4043,3858.0,3857.9,6.22475]
[1753641817815,2.8104,3858.0,3857.9,6.22475]
[1753641818316,3.4043,3858.0,3857.9,9.43255]
[1753641818816,2.8104,3858.0,3857.9,9.43255]
[1753641819013,1.3204,3858.0,3857.9,9.43255]
[1753641819321,2.8104,3858.3,3858.2,5.7065]
[1753641819519,2.8104,3858.3,3858.2,6.95417335]
[1753641821518,3.4043,3858.3,3858.2,6.95417335]
[1753641821918,4.3034,3858.3,3858.2,6.95417335]
[1753641822518,3.4043,3858.3,3858.2,6.95417335]
[1753641824613,4.3034,3858.3,3858.2,6.95417335]
[1753641825117,4.82161,3858.3,3858.2,6.22472]
[1753641825313,4.82161,3858.3,3858.2,5.38372]
[1753641825514,4.82161,3858.3,3858.2,4.44642]
[1753641827225,3.0388,3858.3,3858.2,6.22472]
[1753641827426,4.3034,3858.3,3858.2,6.22472]
[1753641827615,4.82161,3858.3,3858.2,4.44642]
[1753641828621,3.424,3857.8,3857.7,4.8655]
[1753641828818,2.3738,3857.6,3857.5,2.4273]
[1753641829018,4.8217,3857.6,3857.5,4.44651]
[1753641829319,4.8217,3857.6,3857.5,5.38381]
[1753641832821,4.82175,3857.2,3857.1,2.4382]
[1753641833216,4.82175,3857.2,3857.1,4.8655]
[1753641834517,0.51839,3857.0,3856.9,0.51839]
[1753641834719,4.3034,3856.9,3856.8,3.9282]
[1753641834918,4.3034,3856.9,3856.8,4.8655]
[1753641835226,3.92269,3856.9,3856.8,6.22489]
[1753641838221,4.79979,3856.9,3856.8,3.9282]
[1753641838619,4.79979,3856.9,3856.8,5.38881]
[1753641839023,3.92269,3856.9,3856.8,6.22501]
[1753641840528,3.69429,3856.9,3856.8,6.22501]
[1753641843231,4.80539,3856.9,3856.8,5.7066]
[1753641843426,4.80539,3856.9,3856.8,3.9282]
[1753641843726,4.76743,3856.6,3856.5,2.3063]
[1753641844232,2.35076,3856.4,3856.3,2.82477]
[1753641844431,4.76746,3856.4,3856.3,2.82477]
[1753641844633,4.76746,3856.4,3856.3,4.34707]
[1753641845236,3.89036,3856.4,3856.3,6.12257]
[1753641845534,3.28196,3856.4,3856.3,6.12257]
[1753641845732,0.51845,3856.5,3856.4,0.51846]
[1753641845930,1.3056,3856.8,3856.5,2.3585]
[1753641846232,0.51841,3856.9,3856.8,5.28628]
[1753641846434,2.1564,3856.9,3856.8,6.85193335]
[1753641846620,3.2078,3857.3,3856.8,6.33355335]
[1753641846824,3.28185,3857.2,3857.1,3.60632335]
[1753641847024,3.28185,3857.2,3857.1,6.85192335]
[1753641847632,2.7635,3857.2,3857.1,6.85192335]
[1753641847834,3.28185,3857.2,3857.1,6.85192335]
[1753641848335,4.75875,3857.2,3857.1,2.3063]
[1753641848631,4.75875,3857.2,3857.1,2.82467]
[1753641848934,4.75875,3857.2,3857.1,4.34697]
[1753641851334,4.75875,3857.2,3857.1,3.8286]
[1753641851534,4.75878,3857.0,3856.9,2.3063]
[1753641851929,4.75878,3857.0,3856.9,0.8898]
[1753641852237,4.75882,3856.7,3856.6,3.8286]
[1753641852738,4.75882,3856.7,3856.6,4.7679]
[1753641853135,4.75882,3856.7,3856.6,5.28633]
[1753641854039,4.75882,3856.7,3856.6,4.7679]
[1753641854536,4.75882,3856.7,3856.6,2.3063]
[1753641854837,4.75882,3856.7,3856.3,3.72627]
[1753641854838,3.88176,3856.4,3856.3,8.49417]
[1753641855431,3.88176,3856.4,3856.3,5.28637]
[1753641855631,3.88176,3856.4,3856.3,6.12257]
[1753641856337,2.7635,3856.4,3856.3,10.05982335]
[1753641857331,2.7635,3856.4,3856.3,6.85202335]
[1753641857533,3.28196,3856.4,3856.3,10.05982335]
[1753641857933,2.7635,3856.4,3856.3,10.05982335]
[1753641858736,2.7635,3856.4,3856.3,6.85202335]
[1753641859038,3.3633,3856.4,3856.3,2.8786]
[1753641859234,0.51849,3856.2,3856.1,1.4165]
[1753641859436,4.75889,3856.2,3856.1,3.2563]
[1753641859737,4.75889,3856.2,3856.1,3.8286]
[1753641860945,1.73841,3856.0,3855.9,3.8286]
[1753641861135,4.75891,3856.0,3855.9,3.8286]
[1753641861334,4.75891,3856.0,3855.9,4.7679]
[1753641861538,4.75891,3856.0,3855.9,3.8286]
[1753641861934,4.75891,3856.0,3855.8,0.19191618]
[1753641862131,2.34553,3855.9,3855.8,0.19191618]
[1753641862335,4.75893,3855.9,3855.8,0.19191618]
[1753641862742,7.96673,3855.9,3855.8,0.19191618]
[1753641863943,2.34555,3855.7,3855.6,2.3063]
[1753641864144,2.34561,3855.3,3855.2,2.47975706]
[1753641864339,3.88191,3855.3,3855.2,2.47975706]
[1753641864539,3.88191,3855.3,3855.2,3.31595706]
[1753641864738,3.88191,3855.3,3855.2,5.62225706]
[1753641865046,3.28211,3855.3,3855.2,5.62225706]
[1753641867344,3.28211,3855.3,3855.2,6.14087706]
[1753641867840,3.65121,3855.3,3855.2,5.62225706]
[1753641868048,4.79661,3855.3,3855.2,3.84675706]
[1753641868548,4.79661,3855.3,3855.2,4.36537706]
[1753641869145,4.79661,3855.3,3855.2,3.84675706]
[1753641869846,4.79661,3855.3,3855.2,4.36537706]
[1753641870044,4.79661,3855.3,3855.2,5.30837706]
[1753641870250,4.79661,3855.3,3855.2,4.78975706]
[1753641870445,3.2078,3855.8,3855.6,0.51857]
[1753641870645,3.2078,3855.8,3855.7,7.03040335]
[1753641871143,1.93581,3856.1,3856.0,2.97171]
[1753641871349,1.4173,3856.1,3856.0,6.30091]
[1753641871549,0.8582,3856.1,3856.0,6.30091]
[1753641871944,1.37668,3856.3,3856.2,2.97167]
[1753641872145,3.28048,3856.3,3856.2,6.30087]
[1753641872446,3.65628,3856.3,3856.2,5.7824]
[1753641872648,3.89118,3856.3,3856.2,5.7824]
[1753641873148,4.80168,3856.3,3856.2,3.9595]
[1753641873750,4.80168,3856.3,3856.2,4.47799]
[1753641874148,2.72138,3856.3,3856.2,6.30089]
[1753641874452,5.9698,3856.7,3856.6,2.97163]
[1753641874653,6.5805,3856.7,3856.6,6.30083]
[1753641875043,5.4107,3856.7,3856.6,6.30083]
[1753641875242,0.8582,3856.7,3856.6,6.30083]
[1753641876255,2.762,3856.7,3856.6,6.30083]
[1753641878054,2.2029,3856.7,3856.6,6.30083]
[1753641878254,0.8582,3857.0,3856.9,2.4532]
[1753641878446,0.8582,3857.0,3856.9,6.30079]
[1753641878647,1.86307,3857.1,3857.0,6.30078]
[1753641878850,0.794,3857.5,3857.4,0.9566]
[1753641879156,5.48388534,3857.5,3857.4,3.9595]
[1753641880660,5.48388534,3857.5,3857.4,4.9025]
[1753641880962,3.65611,3857.5,3857.4,5.7824]
[1753641881851,3.89101,3857.5,3857.4,5.7824]
[1753641883059,2.72121,3857.5,3857.4,5.7824]
[1753641883359,3.28031,3857.5,3857.4,5.7824]
[1753641883750,3.89101,3857.5,3857.4,5.7824]
[1753641884256,2.2029,3857.5,3857.4,6.30073]
[1753641884555,6.4881,3857.6,3857.5,6.30071]
[1753641884948,6.8639,3857.6,3857.5,6.30071]
[1753641885253,3.891,3857.6,3857.5,6.30071]
[1753641885453,3.3727,3857.6,3857.5,6.30071]
[1753641885657,3.1378,3857.6,3857.5,6.30071]
[1753641886361,3.6561,3857.6,3857.5,6.30071]
[1753641887660,3.891,3857.6,3857.5,6.30071]
[1753641889656,4.80155,3857.2,3857.1,2.5163]
[1753641889959,4.80159,3857.0,3856.9,1.5733]
[1753641890150,3.22202,3856.7,3856.6,3.9595]